[Event "80th ARM-ch 1st League 2019"]
[Site "Yerevan"]
[Date "2019.08.27"]
[Round "9.5"]
[White "Baghdasaryan, Vahe"]
[Black "Chaqryan, Erik"]
[Result "1/2-1/2"]
[ECO "A05"]
[WhiteElo "2373"]
[BlackElo "2105"]
[Annotator "NA"]
[PlyCount "128"]
[EventDate "2019.08.18"]
[EventType "tourn"]
[EventCountry "ARM"]
[SourceTitle "playchess.com"]
[Source "ChessBase"]
[SourceQuality "1"]
[TimeControl "40/5400+30:1800+30"]

1. Nf3 {[%emt 0:00:00]} Nf6 {[%emt 0:00:40]} 2. c4 {[%emt 0:00:15]} g6 {[%emt 0:00:44]} 3. Nc3 {[%emt 0:00:13]} Bg7 {[%emt 0:00:21]} 4. g3 {[%emt 0:01:48]} O-O {[%emt 0:00:41]} 5. e4 {[%emt 0:03:28]} e5 {[%emt 0:03:19]} 6. Bg2 {[%emt 0:06:23]} Nc6 {[%emt 0:01:40]} 7. d3 {[%emt 0:00:47]} d6 {[%emt 0:00:17]} 8. O-O {[%emt 0:02:50]} Bg4 {[%emt 0:01:15]} 9. h3 {[%emt 0:00:51] A26: English Opening vs King's Indian with ...Nc6 and d3} Bxf3 {[%emt 0:00:14]} 10. Bxf3 {[%emt 0:00:03]} Nd7 {[%emt 0:01:44]} 11. Bg2 {[%emt 0:00:16]} Nc5 {[%emt 0:05:53]} (11... Nd4 12. Be3 c6 13. Qd2 a5 14. Bxd4 exd4 15. Ne2 {½-½ (15) Strzemiecki,Z (2361)-Sevostianov,P (2302) Chervonograd 2014}) 12. a3 {[%emt 0:10:29]} a5 $146 {[%emt 0:02:49]} ({Predecessor:} 12... Nd4 13. b4 Ncb3 14. Rb1 Nxc1 15. Rxc1 h5 16. Ne2 Bh6 17. Rb1 Nxe2+ 18. Qxe2 h4 19. Qg4 hxg3 20. fxg3 Qg5 {½-½ (20) Weller,M (2023)-Thieme Garmann,A (2148) Hoeheinoed 2008}) 13. f4 {[%emt 0:02:49]} exf4 {[%emt 0:04:07]} 14. Bxf4 {[%emt 0:00:13]} Nd4 {[%emt 0:02:19]} 15. Rb1 {[%emt 0:00:34]} a4 {[%emt 0:08:07]} 16. Kh2 {[%emt 0:04:44]} c6 {[%emt 0:10:07]} 17. Qd2 {[%emt 0:02:42]} Be5 {[%emt 0:02:42]} 18. Rbd1 {[%emt 0:05:21]} Qe7 {[%emt 0:08:50]} 19. Bg5 {[%emt 0:05:00]} f6 {[%emt 0:02:17]} 20. Bh6 {[%emt 0:01:01]} Rf7 {[%emt 0:13:34]} 21. Be3 {[%emt 0:01:04]} Ncb3 {[%emt 0:02:07]} 22. Qf2 {[%emt 0:08:35]} h5 $17 {[%emt 0:03:26]} 23. h4 {[%emt 0:15:16]} Rg7 {[%emt 0:03:45]} 24. Bh6 {[%emt 0:06:43]} Rh7 {[%emt 0:01:04]} 25. Bf4 {[%emt 0:00:07]} Rf7 {[%emt 0:03:53]} 26. Bh3 {[%emt 0:02:04]} Kf8 {[%emt 0:05:49]} 27. Kh1 {[%emt 0:02:04]} Ke8 {[%emt 0:00:52]} 28. Be3 {[%emt 0:01:04]} Kd8 {[%emt 0:02:10]} 29. Na2 {[%emt 0:06:42]} Kc7 {[%emt 0:03:49]} 30. Nc1 {[%emt 0:00:14]} Nxc1 {[%emt 0:00:40]} 31. Bxd4 {[%emt 0:00:15]} Bxd4 {[%emt 0:00:30]} 32. Qxd4 {[%emt 0:00:08]} Nb3 {[%emt 0:00:01]} 33. Qe3 {[%emt 0:05:36]} c5 {[%emt 0:00:25]} 34. Qh6 {[%emt 0:00:32]} Rg8 {[%emt 0:00:32]} 35. Rf2 {[%emt 0:00:53]} Nd4 {[%emt 0:05:00]} 36. Rdf1 {[%emt 0:00:08]} Kb8 {[%emt 0:00:45]} 37. Bg2 {[%emt 0:04:00]} Qe5 {[%emt 0:00:56]} 38. Kh2 {[%emt 0:00:07]} b6 {[%emt 0:01:02]} 39. Qf4 {[%emt 0:01:23]} Rgf8 {[%emt 0:00:21]} 40. Bh3 {[%emt 0:00:00]} Ka8 {[%emt 0:00:00]} 41. Qh6 {[%emt 0:11:09]} Rg8 {[%emt 0:02:53]} 42. Bg2 {[%emt 0:03:52]} Kb8 {[%emt 0:06:27]} 43. Qe3 {[%emt 0:04:08]} Rh8 {[%emt 0:10:25]} 44. Qf4 {[%emt 0:01:09]} Rhf8 {[%emt 0:01:40]} 45. Bh3 {[%emt 0:00:42]} Ka8 {[%emt 0:00:48]} 46. Qh6 {[%emt 0:02:08]} Rg8 {[%emt 0:00:04]} 47. Rg1 {[%emt 0:00:16]} Rfg7 {[%emt 0:06:58]} 48. Kh1 {[%emt 0:06:59]} g5 {[%emt 0:02:19]} 49. Qxh5 {[%emt 0:02:08]} gxh4 {[%emt 0:00:43]} 50. Qxh4 {[%emt 0:00:05]} Rxg3 {[%emt 0:01:08]} 51. Rxg3 {[%emt 0:00:11]} Qxg3 {[%emt 0:00:15]} 52. Qxg3 {[%emt 0:00:05]} Rxg3 {[%emt 0:00:03]} 53. Bg2 {[%emt 0:00:09]} Kb8 {[%emt 0:00:46]} 54. Rxf6 {[%emt 0:02:24]} Rxd3 {[%emt 0:00:17]} 55. e5 {[%emt 0:01:39]} dxe5 {[%emt 0:00:22]} 56. Rxb6+ {[%emt 0:00:08]} Kc7 {[%emt 0:00:38]} 57. Rb7+ {[%emt 0:00:24]} Kd6 {[%emt 0:00:38]} 58. Bd5 {[%emt 0:00:27]} Rd2 {[%emt 0:01:23]} 59. Kg1 {[%emt 0:01:49]} Re2 {[%emt 0:00:47]} 60. Rb6+ {[%emt 0:00:56]} Kc7 {[%emt 0:00:06]} 61. Rb7+ {[%emt 0:00:49]} Kd6 {[%emt 0:00:05]} 62. Rb6+ {[%emt 0:01:47]} Kc7 {[%emt 0:00:05]} 63. Rb7+ {[%emt 0:00:47]} Kd6 {[%emt 0:00:05]} 64. Rb6+ {[%emt 0:00:22]} Ke7 1/2-1/2

[Event "80th ARM-ch 1st League 2019"]
[Site "Yerevan"]
[Date "2019.08.27"]
[Round "9.7"]
[White "Gevorgyan, Albert"]
[Black "Hayrapetyan, Hovik"]
[Result "1-0"]
[ECO "A05"]
[WhiteElo "2175"]
[BlackElo "2453"]
[Annotator "ChessBase"]
[PlyCount "63"]
[EventDate "2019.08.18"]
[EventType "tourn"]
[EventCountry "ARM"]
[SourceTitle "playchess.com"]
[Source "ChessBase"]
[SourceQuality "1"]
[TimeControl "40/5400+30:1800+30"]

1. Nf3 {[%emt 0:00:08]} Nf6 {[%emt 0:00:45]} 2. c4 {[%emt 0:00:14]} e6 {[%emt 0:00:55]} 3. Nc3 {[%emt 0:00:11]} d5 {[%emt 0:00:06]} 4. d4 {[%emt 0:00:06]} a6 {[%emt 0:00:46]} 5. cxd5 {[%emt 0:05:40]} exd5 {[%emt 0:00:26]} 6. Bg5 {[%emt 0:00:45]} c6 {[%emt 0:00:25]} 7. e3 {[%emt 0:00:57]} Be7 {[%emt 0:06:51]} 8. Bd3 {[%emt 0:00:14]} O-O {[%emt 0:00:05]} 9. Qc2 {[%emt 0:00:15]} Nbd7 {[%emt 0:02:12]} 10. O-O {[%emt 0:01:38]} h6 {[%emt 0:01:47]} 11. Bf4 {[%emt 0:02:09]} Re8 {[%emt 0:14:08]} 12. h3 {[%emt 0:04:35]} Nf8 {[%emt 0:00:10]} 13. Rab1 {[%emt 0:07:48]} Bd6 {[%emt 0:07:29]} 14. Bxd6 {[%emt 0:07:28]} Qxd6 {[%emt 0:01:09]} 15. b4 {[%emt 0:00:08]} N8d7 {[%emt 0:05:56]} 16. Rfc1 {[%emt 0:09:47]} b5 {[%emt 0:07:44]} 17. e4 {[%emt 0:09:45]} dxe4 {[%emt 0:00:13]} 18. Nxe4 {[%emt 0:00:06]} Nxe4 {[%emt 0:00:04]} 19. Bxe4 {[%emt 0:00:08]} Bb7 {[%emt 0:00:18]} 20. Bxc6 {[%emt 0:06:44]} Rac8 {[%emt 0:00:55]} 21. d5 {[%emt 0:00:09]} Nb8 {[%emt 0:01:08]} 22. Bxe8 {[%emt 0:00:16]} Rxc2 {[%emt 0:00:00]} 23. Rxc2 {[%emt 0:00:05]} Kf8 {[%emt 0:29:53]} 24. Re1 {[%emt 0:07:30]} g6 {[%emt 0:01:18]} 25. Rc5 {[%emt 0:02:25]} Kg7 {[%emt 0:07:49]} 26. a3 {[%emt 0:07:12]} Nd7 {[%emt 0:02:18]} 27. Bxd7 {[%emt 0:01:04]} Qxd7 {[%emt 0:00:01]} 28. Rd1 {[%emt 0:08:25]} Qd6 {[%emt 0:00:36]} 29. Nd4 {[%emt 0:01:49]} Qe5 {[%emt 0:01:41]} 30. d6 {[%emt 0:01:11]} Qe4 {[%emt 0:01:55]} 31. f3 {[%emt 0:00:15]} Qe3+ {[%emt 0:01:54]} 32. Kh1 {[%emt 0:00:08]} 1-0

[Event "80th ARM-ch 1st League 2019"]
[Site "Yerevan"]
[Date "2019.08.28"]
[Round "10.1"]
[White "Chaqryan, Erik"]
[Black "Khojayan, Vardan"]
[Result "1/2-1/2"]
[ECO "B50"]
[WhiteElo "2105"]
[BlackElo "2236"]
[Annotator "NA"]
[PlyCount "181"]
[EventDate "2019.08.18"]
[EventType "tourn"]
[EventCountry "ARM"]
[SourceTitle "playchess.com"]
[Source "ChessBase"]
[SourceQuality "1"]
[TimeControl "40/5400+30:1800+30"]

1. e4 {[%emt 0:00:12]} c5 {[%emt 0:00:00]} 2. Nf3 {[%emt 0:00:16]} d6 {[%emt 0:00:00]} 3. d3 {[%emt 0:01:11]} Nc6 {[%emt 0:00:15]} 4. g3 {[%emt 0:00:07]} g6 {[%emt 0:00:39]} 5. Bg2 {[%emt 0:00:07]} Bg7 {[%emt 0:00:05]} 6. O-O {[%emt 0:00:20]} Nf6 {[%emt 0:01:00]} 7. Nc3 {[%emt 0:00:10]} O-O {[%emt 0:00:20]} 8. Bd2 {[%emt 0:00:43]} Rb8 {[%emt 0:01:26]} 9. Qc1 {[%emt 0:00:59]} Re8 {[%emt 0:00:39]} 10. Bh6 {[%emt 0:00:31]} Bh8 {[%emt 0:00:06]} 11. h3 {[%emt 0:01:04]} b5 {[%emt 0:02:49]} 12. Ne2 {[%emt 0:02:10]} c4 {[%emt 0:13:01]} 13. Qe3 {[%emt 0:21:24]} e5 {[%emt 0:14:21]} 14. Ng5 {[%emt 0:09:34]} Qb6 {[%emt 0:12:06]} 15. Qd2 {[%emt 0:02:09]} cxd3 $11 {[%emt 0:05:44]} 16. cxd3 {[%emt 0:05:47]} d5 {[%emt 0:01:29]} 17. Kh1 {[%emt 0:09:36]} Bb7 {[%emt 0:03:28]} 18. f4 {[%emt 0:01:58]} Rbd8 {[%emt 0:00:32]} 19. Qc2 {[%emt 0:01:31]} dxe4 {[%emt 0:05:29]} 20. Qb3 {[%emt 0:07:59]} Rd7 {[%emt 0:01:15]} 21. dxe4 {[%emt 0:02:33]} Na5 {[%emt 0:02:06]} 22. Qb4 {[%emt 0:04:35]} Nc4 {[%emt 0:01:23]} 23. fxe5 {[%emt 0:02:35]} a5 {[%emt 0:00:36]} 24. Qe1 {[%emt 0:08:32]} Rxe5 {[%emt 0:02:49]} 25. Nc3 {[%emt 0:05:46]} Ne3 {[%emt 0:07:46]} 26. Qf2 {[%emt 0:05:07]} Nc4 {[%emt 0:04:20]} 27. Qxb6 {[%emt 0:04:30]} Nxb6 {[%emt 0:00:06]} 28. Rad1 {[%emt 0:00:06]} b4 {[%emt 0:02:53]} 29. Rxd7 {[%emt 0:01:06]} Nbxd7 {[%emt 0:00:06]} 30. Na4 {[%emt 0:00:26]} Bg7 {[%emt 0:00:23]} 31. Bxg7 {[%emt 0:00:16]} Kxg7 {[%emt 0:00:04]} 32. Nf3 {[%emt 0:00:11]} Re8 {[%emt 0:02:13]} 33. e5 {[%emt 0:01:04]} Nxe5 {[%emt 0:00:38]} 34. Nxe5 {[%emt 0:00:04]} Bxg2+ {[%emt 0:00:03]} 35. Kxg2 {[%emt 0:00:05]} Rxe5 {[%emt 0:00:04]} 36. Rf2 {[%emt 0:00:57]} Ne4 {[%emt 0:00:37]} 37. Re2 {[%emt 0:00:13]} f5 {[%emt 0:00:05]} 38. Rc2 {[%emt 0:01:51]} Rd5 {[%emt 0:00:26]} 39. g4 {[%emt 0:00:19]} Kf6 {[%emt 0:00:21]} 40. gxf5 {[%emt 0:00:00]} gxf5 {[%emt 0:00:00]} 41. Nb6 {[%emt 0:06:57]} Rd3 {[%emt 0:00:32]} 42. Re2 {[%emt 0:07:00]} Kg5 {[%emt 0:00:59]} 43. Nc4 {[%emt 0:00:55]} a4 {[%emt 0:01:02]} 44. Re3 {[%emt 0:04:39]} Rd4 {[%emt 0:01:08]} 45. b3 {[%emt 0:00:22]} a3 {[%emt 0:00:12]} 46. h4+ {[%emt 0:02:32]} Kxh4 {[%emt 0:01:56]} 47. Rh3+ {[%emt 0:00:08]} Kg4 {[%emt 0:00:20]} 48. Rxh7 {[%emt 0:00:22]} Nd2 {[%emt 0:01:53]} 49. Ne3+ {[%emt 0:06:14]} Kg5 {[%emt 0:08:07]} 50. Rf7 {[%emt 0:02:41]} f4 {[%emt 0:01:13]} 51. Nc2 {[%emt 0:04:43]} Rd3 {[%emt 0:08:22]} 52. Nxb4 {[%emt 0:00:25]} Rg3+ {[%emt 0:05:49]} 53. Kf2 {[%emt 0:00:12]} Ne4+ {[%emt 0:00:03]} 54. Kf1 {[%emt 0:00:06]} Rf3+ {[%emt 0:00:35]} 55. Kg1 {[%emt 0:00:48]} Nd2 {[%emt 0:06:16]} 56. Nc2 {[%emt 0:01:19]} Rf1+ {[%emt 0:00:14]} 57. Kh2 {[%emt 0:00:26]} Rf2+ {[%emt 0:02:32]} 58. Kg1 {[%emt 0:00:17]} Re2 {[%emt 0:01:06]} 59. Nxa3 {[%emt 0:00:16]} Kg4 {[%emt 0:01:33]} 60. Nc4 {[%emt 0:00:56]} Nxc4 {[%emt 0:03:28]} 61. bxc4 {[%emt 0:00:01]} Rxa2 {[%emt 0:00:06]} 62. c5 {[%emt 0:00:59]} Rc2 {[%emt 0:00:05]} 63. Rg7+ {[%emt 0:00:30]} Kf3 {[%emt 0:00:20]} 64. Rg5 {[%emt 0:00:11]} Rc1+ {[%emt 0:00:26]} 65. Kh2 {[%emt 0:00:04]} Kf2 {[%emt 0:00:11]} 66. Rg2+ {[%emt 0:01:06]} Ke3 {[%emt 0:00:04]} 67. Ra2 {[%emt 0:00:36]} Rxc5 {[%emt 0:00:14]} 68. Ra3+ {[%emt 0:00:19]} Ke4 {[%emt 0:00:48]} 69. Kg2 {[%emt 0:00:27]} Rc2+ {[%emt 0:00:05]} 70. Kf1 {[%emt 0:00:02]} Rb2 {[%emt 0:01:08]} 71. Ra4+ {[%emt 0:01:10]} Kf3 {[%emt 0:00:12]} 72. Ra3+ {[%emt 0:00:01]} Kg4 {[%emt 0:00:06]} 73. Rc3 {[%emt 0:00:15]} Rd2 {[%emt 0:00:56]} 74. Rb3 {[%emt 0:00:19]} Ra2 {[%emt 0:00:58]} 75. Rc3 {[%emt 0:00:13]} Ra8 {[%emt 0:00:16]} 76. Kf2 {[%emt 0:00:45]} Ra4 {[%emt 0:00:16]} 77. Kg2 {[%emt 0:00:39]} Ra2+ {[%emt 0:00:17]} 78. Kf1 {[%emt 0:00:10]} Kf5 {[%emt 0:00:36]} 79. Rb3 {[%emt 0:00:12]} Kg4 {[%emt 0:02:29]} 80. Rc3 {[%emt 0:00:09]} Ra4 {[%emt 0:01:23]} 81. Kg2 {[%emt 0:00:17]} Rb4 {[%emt 0:00:14]} 82. Ra3 {[%emt 0:00:13]} Rb8 {[%emt 0:00:08]} 83. Kf2 {[%emt 0:00:18]} Re8 {[%emt 0:01:30]} 84. Rb3 {[%emt 0:00:14]} Ra8 {[%emt 0:00:06]} 85. Kg2 {[%emt 0:00:31]} Rd8 {[%emt 0:01:34]} 86. Ra3 {[%emt 0:00:22]} Rg8 {[%emt 0:00:15]} 87. Kf2 {[%emt 0:00:15]} Rb8 {[%emt 0:00:16]} 88. Kg2 {[%emt 0:00:09]} f3+ {[%emt 0:00:04]} 89. Rxf3 {[%emt 0:00:04]} Rb2+ {[%emt 0:00:02]} 90. Rf2 {[%emt 0:00:01]} Rxf2+ {[%emt 0:00:05]} 91. Kxf2 1/2-1/2

[Event "80th ARM-ch 1st League 2019"]
[Site "Yerevan"]
[Date "2019.08.29"]
[Round "11.1"]
[White "Khojayan, Vardan"]
[Black "Hayrapetyan, Hovik"]
[Result "1/2-1/2"]
[ECO "A06"]
[WhiteElo "2236"]
[BlackElo "2453"]
[Annotator "ChessBase"]
[PlyCount "85"]
[EventDate "2019.08.18"]
[EventType "tourn"]
[EventCountry "ARM"]
[SourceTitle "playchess.com"]
[Source "ChessBase"]
[SourceQuality "1"]
[TimeControl "40/5400+30:1800+30"]

1. Nf3 {[%emt 0:00:00]} d5 {[%emt 0:01:37]} 2. g3 {[%emt 0:00:05]} g6 {[%emt 0:00:38]} 3. Bg2 {[%emt 0:00:06]} Bg7 {[%emt 0:00:04]} 4. O-O {[%emt 0:00:26]} e5 {[%emt 0:00:03]} 5. d3 {[%emt 0:02:08]} Ne7 {[%emt 0:00:45]} 6. e4 {[%emt 0:04:21]} O-O {[%emt 0:00:29]} 7. exd5 {[%emt 0:02:03]} Nxd5 {[%emt 0:00:05]} 8. Re1 {[%emt 0:00:06]} Nc6 {[%emt 0:00:33]} 9. Nbd2 {[%emt 0:00:09]} Re8 {[%emt 0:02:09]} 10. c3 {[%emt 0:06:24]} Bf5 {[%emt 0:03:22]} 11. Ne4 {[%emt 0:00:40]} h6 {[%emt 0:00:10]} 12. Qc2 {[%emt 0:05:00]} b6 {[%emt 0:06:35]} 13. b4 {[%emt 0:04:38]} g5 {[%emt 0:20:04]} 14. b5 {[%emt 0:03:36]} Na5 {[%emt 0:02:18]} 15. Bd2 {[%emt 0:02:17]} c5 {[%emt 0:07:01]} 16. bxc6 {[%emt 0:09:15]} Nxc6 {[%emt 0:03:57]} 17. Rab1 {[%emt 0:04:36]} Nc7 {[%emt 0:05:09]} 18. h4 {[%emt 0:05:11]} g4 {[%emt 0:00:39]} 19. Nh2 {[%emt 0:00:05]} Qd7 {[%emt 0:09:32]} 20. f3 {[%emt 0:09:29]} gxf3 {[%emt 0:00:18]} 21. Bxf3 {[%emt 0:02:07]} Rad8 {[%emt 0:00:25]} 22. g4 {[%emt 0:01:28]} Bh7 {[%emt 0:01:34]} 23. g5 {[%emt 0:14:46]} Qxd3 {[%emt 0:03:08]} 24. Qxd3 {[%emt 0:00:13]} Rxd3 {[%emt 0:00:05]} 25. gxh6 {[%emt 0:00:14]} Bh8 {[%emt 0:19:15]} 26. Bg5 {[%emt 0:01:57]} Re6 {[%emt 0:00:25]} 27. Rbd1 {[%emt 0:01:13]} Rxd1 {[%emt 0:00:30]} 28. Rxd1 {[%emt 0:04:49]} Ne8 {[%emt 0:04:49]} 29. Rd7 {[%emt 0:03:25]} Bf5 {[%emt 0:00:01]} 30. Ng3 {[%emt 0:03:52]} e4 {[%emt 0:01:44]} 31. Nxf5 {[%emt 0:06:29]} exf3 {[%emt 0:00:04]} 32. Nxf3 {[%emt 0:00:25]} Bxc3 {[%emt 0:00:42]} 33. h5 {[%emt 0:00:25]} Ne5 {[%emt 0:06:31]} 34. Nxe5 {[%emt 0:01:00]} Rxe5 {[%emt 0:00:03]} 35. h7+ {[%emt 0:02:26]} Kxh7 {[%emt 0:00:04]} 36. Rxf7+ {[%emt 0:00:03]} Kg8 {[%emt 0:00:04]} 37. Nh6+ {[%emt 0:01:01]} Kh8 {[%emt 0:00:01]} 38. Nf5 {[%emt 0:00:56]} Kg8 {[%emt 0:02:37]} 39. Nh6+ {[%emt 0:00:05]} Kh8 {[%emt 0:00:03]} 40. Nf5 {[%emt 0:00:00]} Kg8 {[%emt 0:00:00]} 41. Nh6+ {[%emt 0:01:21]} Kh8 {[%emt 0:05:23]} 42. Nf5 {[%emt 0:02:05]} Kg8 {[%emt 0:02:53]} 43. Nh6+ {[%emt 0:00:10]} 1/2-1/2

[Event "80th ARM-ch 1st League 2019"]
[Site "Yerevan"]
[Date "2019.08.29"]
[Round "11.2"]
[White "Shahinyan, David"]
[Black "Harutjunyan, Gevorg"]
[Result "1-0"]
[ECO "A45"]
[WhiteElo "2452"]
[BlackElo "2455"]
[Annotator "ChessBase"]
[PlyCount "113"]
[EventDate "2019.08.18"]
[EventType "tourn"]
[EventCountry "ARM"]
[SourceTitle "playchess.com"]
[Source "ChessBase"]
[SourceQuality "1"]
[TimeControl "40/5400+30:1800+30"]

1. d4 {[%emt 0:00:26]} Nf6 {[%emt 0:00:01]} 2. Bf4 {[%emt 0:00:13]} c5 {[%emt 0:00:36]} 3. d5 {[%emt 0:03:06]} d6 {[%emt 0:00:14]} 4. Nc3 {[%emt 0:03:02]} e5 {[%emt 0:00:07]} 5. dxe6 {[%emt 0:01:18]} Bxe6 {[%emt 0:00:10]} 6. e4 {[%emt 0:00:37]} Nc6 {[%emt 0:00:23]} 7. Nf3 {[%emt 0:01:02]} Be7 {[%emt 0:05:16]} 8. Bd3 {[%emt 0:09:44]} O-O {[%emt 0:04:26]} 9. O-O {[%emt 0:01:41]} c4 {[%emt 0:06:03]} 10. Be2 {[%emt 0:00:10]} d5 {[%emt 0:00:10]} 11. exd5 {[%emt 0:11:54]} Nxd5 {[%emt 0:00:17]} 12. Nxd5 {[%emt 0:00:03]} Bxd5 {[%emt 0:02:57]} 13. Be3 {[%emt 0:04:29]} Bf6 {[%emt 0:06:48]} 14. c3 {[%emt 0:00:21]} b5 {[%emt 0:05:25]} 15. Qd2 {[%emt 0:06:21]} a6 {[%emt 0:10:35]} 16. Rfd1 {[%emt 0:05:32]} Be4 {[%emt 0:03:21]} 17. a4 {[%emt 0:05:21]} Qe7 {[%emt 0:03:49]} 18. Qd6 {[%emt 0:12:26]} Qxd6 {[%emt 0:04:36]} 19. Rxd6 {[%emt 0:00:34]} Rfd8 {[%emt 0:00:13]} 20. Rxd8+ {[%emt 0:02:09]} Rxd8 {[%emt 0:00:11]} 21. Nd2 {[%emt 0:00:25]} Bd5 {[%emt 0:02:08]} 22. axb5 {[%emt 0:01:18]} axb5 {[%emt 0:00:19]} 23. Ra6 {[%emt 0:00:07]} h6 {[%emt 0:02:08]} 24. h3 {[%emt 0:02:31]} Rb8 {[%emt 0:06:24]} 25. Bf4 {[%emt 0:08:16]} Be5 {[%emt 0:10:34]} 26. Bxe5 {[%emt 0:01:42]} Nxe5 {[%emt 0:00:07]} 27. f4 {[%emt 0:00:24]} Nd7 {[%emt 0:00:28]} 28. Ra5 {[%emt 0:04:31]} Nc5 {[%emt 0:03:47]} 29. g3 {[%emt 0:00:59]} Be6 {[%emt 0:11:06]} 30. g4 {[%emt 0:04:00]} Bd7 {[%emt 0:02:34]} 31. Ra7 {[%emt 0:00:56]} Rd8 {[%emt 0:00:44]} 32. Nf3 {[%emt 0:05:48]} Na4 {[%emt 0:00:18]} 33. Ne5 {[%emt 0:00:01]} Be8 {[%emt 0:00:27]} 34. Bf3 {[%emt 0:00:24]} Nxb2 {[%emt 0:01:20]} 35. Nc6 {[%emt 0:00:01]} Rd6 {[%emt 0:05:52]} 36. Ra8 {[%emt 0:02:03]} Kf8 {[%emt 0:00:10]} 37. Nd4 {[%emt 0:00:01]} Rxd4 {[%emt 0:02:44]} 38. cxd4 {[%emt 0:00:04]} Ke7 {[%emt 0:00:04]} 39. Kf2 {[%emt 0:01:41]} b4 {[%emt 0:00:57]} 40. Rb8 {[%emt 0:00:00]} b3 {[%emt 0:00:00]} 41. Ke3 {[%emt 0:10:11]} Bd7 {[%emt 0:08:02]} 42. Kd2 {[%emt 0:05:23]} Na4 {[%emt 0:02:32]} 43. Rb4 {[%emt 0:00:28]} c3+ {[%emt 0:02:27]} 44. Kd3 {[%emt 0:00:37]} b2 {[%emt 0:07:46]} 45. Bd1 {[%emt 0:00:39]} f5 {[%emt 0:01:35]} 46. Bxa4 {[%emt 0:01:23]} Bxa4 {[%emt 0:00:18]} 47. Kxc3 {[%emt 0:00:04]} fxg4 {[%emt 0:01:59]} 48. hxg4 {[%emt 0:00:03]} Bd1 {[%emt 0:00:15]} 49. g5 {[%emt 0:00:08]} h5 {[%emt 0:00:27]} 50. Rxb2 {[%emt 0:00:18]} Bg4 {[%emt 0:00:55]} 51. Rb7+ {[%emt 0:02:47]} Kf8 {[%emt 0:01:50]} 52. d5 {[%emt 0:00:25]} h4 {[%emt 0:00:06]} 53. Kd4 {[%emt 0:02:05]} h3 {[%emt 0:00:07]} 54. Ke5 {[%emt 0:00:26]} g6 {[%emt 0:01:00]} 55. Kf6 {[%emt 0:00:08]} Ke8 {[%emt 0:00:24]} 56. Kxg6 {[%emt 0:00:14]} Bf3 {[%emt 0:00:08]} 57. Rb8+ {[%emt 0:00:21]} 1-0

[Event "80th ARM-ch 1st League 2019"]
[Site "Yerevan"]
[Date "2019.08.29"]
[Round "11.3"]
[White "Harutyunian, Tigran K."]
[Black "Davtyan, Artur"]
[Result "0-1"]
[ECO "A06"]
[WhiteElo "2555"]
[BlackElo "2440"]
[Annotator "ChessBase"]
[PlyCount "86"]
[EventDate "2019.08.18"]
[EventType "tourn"]
[EventCountry "ARM"]
[SourceTitle "playchess.com"]
[Source "ChessBase"]
[SourceQuality "1"]
[TimeControl "40/5400+30:1800+30"]

1. Nf3 {[%emt 0:00:07]} d5 {[%emt 0:00:24]} 2. g3 {[%emt 0:00:31]} e6 {[%emt 0:00:08]} 3. Bg2 {[%emt 0:00:22]} Nf6 {[%emt 0:00:07]} 4. O-O {[%emt 0:00:09]} c5 {[%emt 0:00:06]} 5. d3 {[%emt 0:01:36]} Nc6 {[%emt 0:00:18]} 6. Bf4 {[%emt 0:03:53]} Be7 {[%emt 0:06:22]} 7. c4 {[%emt 0:07:09]} O-O {[%emt 0:01:17]} 8. Nc3 {[%emt 0:00:28]} d4 {[%emt 0:06:09]} 9. Nb5 {[%emt 0:00:54]} Nh5 {[%emt 0:04:12]} 10. Bd2 {[%emt 0:01:26]} e5 {[%emt 0:01:14]} 11. e3 {[%emt 0:09:43]} a6 {[%emt 0:08:43]} 12. Na3 {[%emt 0:01:57]} dxe3 {[%emt 0:02:46]} 13. Bxe3 {[%emt 0:02:02]} Nf6 {[%emt 0:02:03]} 14. Qb3 {[%emt 0:03:07]} Qc7 {[%emt 0:00:28]} 15. Nc2 {[%emt 0:04:33]} Bf5 {[%emt 0:05:50]} 16. Nh4 {[%emt 0:05:02]} Be6 {[%emt 0:00:16]} 17. f4 {[%emt 0:00:21]} Rad8 {[%emt 0:10:34]} 18. fxe5 {[%emt 0:07:42]} Ng4 {[%emt 0:02:25]} 19. Nf5 {[%emt 0:06:59]} Bxf5 {[%emt 0:13:34]} 20. Rxf5 {[%emt 0:00:38]} Nxe3 {[%emt 0:00:03]} 21. Nxe3 {[%emt 0:00:32]} Nd4 {[%emt 0:00:08]} 22. Qxb7 {[%emt 0:01:20]} Qxb7 {[%emt 0:00:13]} 23. Bxb7 {[%emt 0:00:05]} Nxf5 {[%emt 0:00:08]} 24. Nxf5 {[%emt 0:00:16]} Bg5 {[%emt 0:00:02]} 25. Rf1 {[%emt 0:27:42]} Rxd3 {[%emt 0:05:49]} 26. Bd5 {[%emt 0:00:05]} g6 {[%emt 0:00:53]} 27. Nd6 {[%emt 0:00:08]} Kg7 {[%emt 0:00:10]} 28. Ne4 {[%emt 0:01:08]} Be3+ {[%emt 0:01:13]} 29. Kg2 {[%emt 0:01:38]} Bd4 {[%emt 0:00:27]} 30. b3 {[%emt 0:01:45]} Re3 {[%emt 0:00:34]} 31. Kh3 {[%emt 0:02:48]} h5 {[%emt 0:05:54]} 32. Rf6 {[%emt 0:00:12]} Re2 {[%emt 0:00:33]} 33. Rf1 {[%emt 0:01:54]} Bxe5 {[%emt 0:02:08]} 34. Nxc5 {[%emt 0:03:49]} g5 {[%emt 0:02:12]} 35. Nd7 {[%emt 0:00:04]} g4+ {[%emt 0:13:57]} 36. Kh4 {[%emt 0:00:02]} Rxh2+ {[%emt 0:00:11]} 37. Kg5 {[%emt 0:00:01]} f6+ {[%emt 0:00:08]} 38. Kf5 {[%emt 0:00:05]} Re8 {[%emt 0:00:08]} 39. Nc5 {[%emt 0:00:56]} Re2 {[%emt 0:00:25]} 40. Ne6+ {[%emt 0:00:00]} Kh6 {[%emt 0:00:00]} 41. c5 {[%emt 0:01:38]} Bxg3 {[%emt 0:00:56]} 42. Bc4 {[%emt 0:02:06]} R8xe6 {[%emt 0:00:11]} 43. Bxe6 {[%emt 0:00:41]} Kg7 {[%emt 0:00:05]} 0-1